Cogmind - Beta 11.1 @@@ ROGUE MODE // 2022.07.07 @ 18:58:32 Player: Smie Result: Destroyed by G-47 Trooper with Particle Gun Performance ------------- Evolutions (0) 0 Regions Visited (2) 400 Robots Destroyed (12) 60 Value Destroyed (289) 289 Prototype IDs (0) 0 Alien Tech Used (0) 0 Bonus (0) 0 TOTAL SCORE: 749 Bonus ------- None Cogmind --------- Core Integrity 0/250 Matter 300/300 Energy 121/125 System Corruption 0% Temperature Cool (11) Movement Walking (120) Location -10/Mines Parts ------- > --- POWER (1) -------- Light Ion Engine > --- PROPULSION (2) --- Aluminum Leg Aluminum Leg > --- UTILITY (2) ------ Small Storage Unit > --- WEAPON (2) ------- Small Laser Mining Claw > --- INVENTORY (8) ---- Ion Engine Aluminum Leg Aluminum Leg Aluminum Leg Medium Matter Pod (100) Sensor Array Mining Laser Mining Claw Peak State ------------ > --- POWER ------------ Light Ion Engine > --- PROPULSION ------- Compact Wheel Compact Wheel > --- UTILITY ---------- Small Storage Unit > --- WEAPON ----------- Medium Laser Light Assault Rifle > --- INVENTORY -------- Light Ion Engine Aluminum Leg Aluminum Leg EM Pulse Gun [Rating: 6] Favorites ----------- Power Light Ion Engine Engine Light Ion Engine Propulsion Aluminum Leg Leg Aluminum Leg Wheel Compact Wheel Utility Small Storage Unit Storage Small Storage Unit Weapon Mining Claw Energy Gun Small Laser Ballistic Gun Light Assault Rifle Slashing Weapon Mining Claw Build | -11 -10 -10 ------- Run | Scr Mat Min Slots Evolved . | . . . Power . | . . . Propulsion . | . . . Utility . | . . . Weapon . | . . . Parts Attached 17 | 6 7 4 Power 4 | 1 2 1 Engine 4 | 1 2 1 Core . | . . . Reactor . | . . . Propulsion 7 | 2 3 2 Treads . | . . . Leg 5 | . 3 2 Wheel 2 | 2 . . Hover . | . . . Flight . | . . . Utility 1 | 1 . . Device . | . . . Storage 1 | 1 . . Processor . | . . . Hackware . | . . . Protection . | . . . Artifact . | . . . Weapon 5 | 2 2 1 Energy Gun 3 | 1 1 1 Energy Cannon . | . . . Ballistic Gun 1 | 1 . . Ballistic Cannon . | . . . Launcher . | . . . Special Weapon . | . . . Impact Weapon . | . . . Slashing Weapon 1 | . 1 . Piercing Weapon . | . . . Special Melee Weapon . | . . . Unidentified Prototypes . | . . . Parts Lost 6 | . 2 4 Power 2 | . 1 1 Propulsion 3 | . 1 2 Utility . | . . . Weapon 1 | . . 1 Highest Loss Streak 4 | . 1 4 To Critical Strikes . | . . . Average Slot Usage (%) 77 | . 84 72 Engine 7 | . 13 4 Leg 19 | . 10 26 Wheel 7 | . 17 . Storage 14 | . 14 14 Energy Gun 13 | . 14 13 Ballistic Gun 5 | . 12 . Slashing Weapon 8 | . 1 14 Naked Turns . | . . . Heaviest Build 14 | 11 14 14 Greatest Support 32 | 32 32 20 Greatest Overweight (x) 3 | . 1 3 Average Overweight (x) . | . . . Largest Inventory Capacity 8 | 8 8 8 Average Capacity 7 | 7 8 8 Most Carried 8 | 6 8 8 Average Carried 7 | 4 7 8 Final Capacity 8 | 8 8 8 Final Carried 8 | 6 8 8 Class Distribution -------------------- 100% | Mutant Dominant Class ---------------- Mutant | -10/Materials Mutant | -10/Mines Resources | -11 -10 -10 ----------- Run | Scr Mat Min Matter Collected 477 | 263 164 50 Remotely . | . . . Salvage Created 388 | 79 205 104 Parts 25 | . 17 8 Haulers Intercepted . | . . . Recyclers Shooed . | . . . Parts Field Recycled . | . . . Retrieved Matter . | . . . Parts Self-Destructed . | . . . Prevented . | . . . Kills | -11 -10 -10 ------- Run | Scr Mat Min Combat Hostiles Destroyed 9 | . 7 2 Melee 2 | . . 2 Guns 7 | . 7 . Classes Destroyed 5 | 1 3 1 Tunneler 1 | . . 1 Recycler 1 | 1 . . Watcher 1 | . 1 . Swarmer 3 | . 3 . Grunt 6 | . 4 2 Best Kill Streak 3 | 1 3 2 Combat Bots Only 3 | . 3 2 Max Kills in Single Turn 1 | 1 1 1 Gunslinging . | . . . Exploded . | . . . Melee 1 | . . 1 Uniques/NPCs Destroyed . | . . . Combat | -11 -10 -10 -------- Run | Scr Mat Min Damage Taken 815 | . 382 433 Core 256 | . 107 149 Absorbed by Shields . | . . . Core Remaining (%) 100 | 100 . . Volleys Fired 34 | 3 31 . Largest 2 | 2 2 . Hottest 70 | 70 70 . Shots Fired 68 | 6 62 . Gun 68 | 6 62 . Cannon . | . . . Launcher . | . . . Special . | . . . Kinetic 34 | 3 31 . Thermal 34 | 3 31 . Explosive . | . . . Electromagnetic . | . . . Robot Hit Streak 12 | 2 12 . Robot Miss Streak 4 | 2 4 . Penetration Max . | . . . Secondary Targets . | . . . Shots Hit Robots 55 | 4 42 9 Core Hits 20 | 2 15 3 Critical Kills . | . . . Critical Parts Destroyed 1 | . 1 . Critical Strikes 4 | . 4 . Burn 3 | . 3 . Destroy 1 | . 1 . Melee Attacks 14 | . . 14 Impact . | . . . Slashing 14 | . . 14 Piercing . | . . . Sneak Attacks 1 | . . 1 Combat Hostiles . | . . . Follow-up Attacks . | . . . Damage Inflicted 678 | 46 425 207 Guns 471 | 46 425 . Cannons . | . . . Explosions . | . . . Melee 207 | . . 207 Ramming . | . . . Kinetic 185 | 22 163 . Thermal 286 | 24 262 . Explosive . | . . . Electromagnetic . | . . . Impact . | . . . Slashing 207 | . . 207 Piercing . | . . . Highest Corruption . | . . . Average Corruption . | . . . Corruption Purged . | . . . Corruption Blocked . | . . . Overload Shots . | . . . Overflow Damage 14 | . . 14 Projectiles . | . . . Explosions . | . . . Melee 14 | . . 14 Knockbacks . | . . . Impact . | . . . Kinetic . | . . . Secondary . | . . . Self-Inflicted Damage . | . . . Shots . | . . . Rammed . | . . . Targets Rammed . | . . . Kicked . | . . . Crushed . | . . . Highest Temperature 216 | 40 216 7 Average Temperature 82 | 21 88 7 Received Heat Transfer 405 | . 150 255 Siege Activations . | . . . Robots Corrupted . | . . . Combat Hostiles . | . . . Parts Fried . | . . . Impact Corruptions . | . . . Robots Melted . | . . . Combat Hostiles . | . . . Parts Melted 1 | . 1 . Heat Transferred 1073 | 74 999 . Parts Sabotaged . | . . . Parts Stolen . | . . . Parts Stripped . | . . . Power Chain Reactions . | . . . Missiles Intercepted . | . . . Alert | -11 -10 -10 ------- Run | Scr Mat Min Peak Influence 235 | 5 235 40 Initial 13 | . 3 13 Average 49 | . 99 23 Maximum Alert Level 1 | . 1 . Low Security (%) 91 | 100 76 100 Level 1 8 | . 23 . Level 2 . | . . . Level 3 . | . . . Level 4 . | . . . Level 5 . | . . . High Security . | . . . Max Security . | . . . Squads Dispatched 1 | . 1 . Investigation . | . . . Extermination . | . . . Reinforcement 1 | . 1 . Assault . | . . . Garrison . | . . . Intercept . | . . . Searches Triggered . | . . . Construction Impeded . | . . . Haulers Reinforced . | . . . Active Scanning Responses . | . . . Cargo Convoy Interrupts . | . . . Stealth | -11 -10 -10 --------- Run | Scr Mat Min Distress Signals 3 | . 3 . Communications Jammed . | . . . Distress Signals . | . . . Times Spotted 17 | . 13 4 Peak Tracking Total 5 | . 5 2 Tactical Retreats 3 | . 3 . Traps | -11 -10 -10 ------- Run | Scr Mat Min Traps Triggered . | . . . Indirectly . | . . . Trap Hack Attempts . | . . . Triggered . | . . . Disarmed . | . . . Reprogrammed . | . . . Reused . | . . . Traps Extracted . | . . . Installed . | . . . Triggered . | . . . Machines | -11 -10 -10 ---------- Run | Scr Mat Min Machines Disabled . | . . . Max in Single Turn . | . . . Machines Sabotaged . | . . . Garrisons Compromised . | . . . Overloaded Fab Kills . | . . . Hacking | -11 -10 -10 --------- Run | Scr Mat Min Machines Accessed 1 | . 1 . Terminals 1 | . 1 . Fabricators . | . . . Repair Stations . | . . . Recycling Units . | . . . Scanalyzers . | . . . Garrison Access . | . . . Total Hacks 1 | . 1 . Successful . | . . . Failed 1 | . 1 . Catastrophic 1 | . 1 . Database Lockouts . | . . . Manual 1 | . 1 . Terminals 1 | . 1 . Fabricators . | . . . Repair Stations . | . . . Recycling Units . | . . . Scanalyzers . | . . . Garrison Access . | . . . Terminal Hacks . | . . . Fabricator Hacks . | . . . Repair Station Hacks . | . . . Recycling Unit Hacks . | . . . Scanalyzer . | . . . Garrison Access Hacks . | . . . Unauthorized Hacks . | . . . Terminals . | . . . Fabricators . | . . . Repair Stations . | . . . Recycling Units . | . . . Scanalyzers . | . . . Garrison Access . | . . . Data Cores Recovered . | . . . Used . | . . . Hacking Detections 1 | . 1 . Full Trace Events . | . . . Feedback Events . | . . . Feedback Blocked . | . . . Robot Schematics Acquired . | . . . Robots Built . | . . . Authchips . | . . . Time . | . . . Total Robot Build Rating . | . . . Part Schematics Acquired . | . . . Parts Built . | . . . Authchips . | . . . Time . | . . . Total Part Build Rating . | . . . Parts Repaired . | . . . Time . | . . . Parts Recycled . | . . . Recycled Matter . | . . . Retrieved Matter . | . . . Retrieved Components . | . . . Parts Scanalyzed . | . . . Part Schematics Acquired . | . . . Parts Damaged . | . . . Bothacking | -11 -10 -10 ------------ Run | Scr Mat Min Used RIF Installer . | . . . Robots Hacked . | . . . Non-combat . | . . . Combat . | . . . Robot Hacks Applied . | . . . Relay Couplers Released . | . . . Fabnet Peak Effective % . | . . . Robots Rewired . | . . . Allies Hacked . | . . . Hacks Repelled . | . . . Allies | -11 -10 -10 -------- Run | Scr Mat Min Total Allies . | . . . Largest Group . | . . . Highest-Rated Group . | . . . Highest-Rated Ally . | . . . Total Orders . | . . . Ally Attacks . | . . . Total Damage . | . . . Kills . | . . . Allies Corrupted . | . . . Allies Melted . | . . . Intel | -11 -10 -10 ------- Run | Scr Mat Min Robot Analysis Total . | . . . Derelict Logs Recovered 1 | . . 1 Drone Launches . | . . . Drone Recoveries . | . . . Exploration | -11 -10 -10 ------------- Run | Scr Mat Min Turns Passed 1137 | 110 423 604 Spaces Moved 787 | 87 275 425 Core 11 | 3 . 8 Treads . | . . . Legs 505 | . 88 417 Wheels 271 | 84 187 . Hover . | . . . Flight . | . . . Fastest Speed 50 | 50 100 120 Average Speed 113 | 98 106 121 Slowest Speed 200 | 100 190 200 Overloaded Moves . | . . . Propulsion Burnouts . | . . . Robots Hopped . | . . . Cave-ins Triggered . | . . . Exploration Rate (%) 45 | 5 41 91 Regions Visited 2 Branch Regions 1 Pre-discovered Areas . | . . . Known Exits Taken . | . . . Unknown Exits Taken 2 | 1 1 . Scrap Searched 1 | . . 1 Spaces Dug . | . . . Terrain Destroyed . | . . . Melee . | . . . Projectile . | . . . AOE . | . . . Terrain Rammed . | . . . Walls Destroyed . | . . . Machines Disabled . | . . . Actions | -11 -10 -10 --------- Run | Scr Mat Min Total 940 | 103 352 485 Wait 68 | 2 24 42 Move 785 | 86 274 425 Hop . | . . . Pick Up 13 | 6 7 . Fast Attach 15 | 6 5 4 Attach 1 | . 1 . Detach . | . . . Swap 1 | . 1 . Drop 9 | . 9 . Fire 34 | 3 31 . Melee 14 | . . 14 Ram . | . . . Kick . | . . . Crush . | . . . Escape Stasis . | . . . Rewire . | . . . Trap . | . . . Miscellaneous . | . . . Route ------- -11/Scrapyard -10/Materials -10/Mines (discovered 2 exits: [*Mat x2]) History --------- Turn | Location | Event 34 | -11/Scrapyard | Discovered new exit (range 15) 111 | -11/Scrapyard | Entered Materials 302 | -10/Materials | Build established: Mutant 332 | -10/Materials | Discovered new exit (range 15) 534 | -10/Materials | Entered Mines 598 | -10/Mines | Core integrity fell below 50% 622 | -10/Mines | Core integrity fell below 20% 669 | -10/Mines | Lost 4 parts (1p2n1w) 674 | -10/Mines | Learned Materials stockpile data 951 | -10/Mines | Discovered new exit (range 11) 1112 | -10/Mines | Discovered new exit (range 10) 1138 | -10/Mines | Destroyed by G-47 Trooper with Particle Gun Last Messages --------------- 00951_ EXIT=FOUND 01002_ K-01 Serf cleans the Seismic Survey Station. 01049_ Sneak attack on T-07 Excavator. 01049_ Destroyed Mining Laser. 01049_ T-07 Excavator destroyed. 01049_ R-06 Scavenger collects Imp. Terrain Scanner. 01052_ R-06 Scavenger collects Seismic Detector. 01056_ Acquired Lgt. Ion Engine. 01057_ R-06 Scavenger collects Wheel. 01061_ Acquired 10 matter. 01083_ U-05 Engineer lays Concrete. 01084_ T-07 Excavator is excavating. 01085_ U-05 Engineer lays Concrete. 01086_ U-05 Engineer builds a Wall. 01106_ Searching scrap... 01106_ Found 34 Matter. 01106_ Found Sml. Storage Unit. 01106_ Found Welding Torch. 01106_ Found 13 Matter. 01112_ EXIT=FOUND Map ----- +----------------------------------------------------+ | | | | | | | | | | | | | | | | | | | | | | | | | ????????????????????????????????????????? | | ????????????????????????????????????????? | | ###?????????????????????????????????????? | | ##????????????????????????##??????????? | | #????????????????????????# ????????#?? | | #???# ??????????????????# "???"?" #?? | | ##?# ??????????????????# """ """ #?? | | ## ??????????????????# """ """ #?? | | ???????????????????# #?? | | ??????????????????# """ < #?? | | #????????????????????# """ #?? | | #???????????????????????# """ #?? | | #???????????????????###### #?? | | #????????????????????# @ g #?? | | ##????????????????????#g#### #?? | | #?????????????????????#%#??# ########??? | | ##?????????????????????#%#### #?????????? | | #??????????????????##??# #?????????? | | ?????????????????## ##?# ######?????????? | | ????????????????## #?# #????###???????? | | ????????????????# #?# ##### #???????? | | ???????????????## #??# ## #???????? | | ########??????## #???# ## ## #???????? | | #?????## #???# ## #?###???????? | | ### ## ####### ##??# ## #???????????? | | ??# ## #### ## ###?????????? | | ??# ## #?????????? | | ??# ########## ### ##### #?????????? | | ?## ##??????## ##?#%##### ##????????? | | ## ##??????# #??# # #????????? | | # #??????# ##??# # !! #????????? | | #?????## #???# # ! #????????? | | ##?????# #???# # ! ! #????????? | | #??????# #???# # !!! #????????? | | #??????## ##???# # #????????? | | ## #???????####????# ########????????? | | ?### ##???????????????# #???????????????? | | ????##????????????????# #???????????????? | +----------------------------------------------------+ Best States ------------- Heat Dissipation 25 Energy Generation 10 Energy Capacity 250 Matter Stores 300 Matter Capacity 300 Sight Range 16 Terrain Scan Density 10 Evasion (%) 55 Item Schematics ----------------- None Robot Schematics ------------------ None Fabricated ------------ Nothing Alien Tech Used ----------------- None Achievements -------------- None Challenges ------------ None Game ------ Seed AnalysisDecoySystem Manual? 0 Play Time 00:13:23 Cumulative 81.9 hours Start 2022.07.07 @ 18:47:47 End 2022.07.07 @ 18:58:32 Sessions 1 Manual Loads 0 Difficulty Rogue Special Mode None Game No. 60 Rogue 41 Adventurer 16 Explorer 3 Win Type - Total 2 Types 2/0/0/0/0/0/0/0/0 Lore% 46 Gallery% 51 Achievement% 41 Wizard Run 0 Options --------- ASCII 1 Keyboard 1 Movement Numpad Keybinds 0 Fullscreen 0 Font 16/Terminus Map View 76x50 Tactical HUD 1 Map Filters NONE Filters NONE Steam X RUN: 73086557-8a88-4f7c-aacf-291663f62497